fUST/lending_fUST_20250719
["ID","MTS","AMOUNT","RATE_DAILY","PERIOD"]
[373090292,1752858651733,-290.46240012,0.00018099,2]
[373090294,1752858651742,-217.89892552,0.00018099,2]
[373090296,1752858651754,-460.0,0.00018099,2]
[373090298,1752858651764,-460.0,0.00018099,2]
[373090300,1752858651774,-460.0,0.00018099,2]
[373090302,1752858651783,-460.0,0.00018099,2]
[373090304,1752858651792,-460.0,0.00018099,2]
[373090306,1752858651801,-460.0,0.00018099,2]
[373090308,1752858651810,-711.11,0.00018099,2]
[373090310,1752858651819,-460.0,0.00018099,2]
[373090312,1752858651829,-460.0,0.00018099,2]
[373090314,1752858651838,-460.0,0.00018099,2]
[373090317,1752858651848,-460.0,0.00018099,2]
[373090319,1752858651857,-460.0,0.00018099,2]
[373090321,1752858651867,-460.0,0.00018099,2]
[373090323,1752858651877,-246.39179565,0.00018099,2]
[373090325,1752858651886,-460.0,0.00018099,2]
[373090327,1752858651896,-460.0,0.00018099,2]
[373090329,1752858651905,-460.0,0.00018099,2]
[373090331,1752858651914,-460.0,0.00018099,2]
[373090333,1752858651923,-925.97,0.00018099,2]
[373090335,1752858651933,-460.0,0.00018099,2]
[373090337,1752858651943,-460.0,0.00018099,2]
[373090339,1752858651952,-460.0,0.00018099,2]
[373090341,1752858651961,-460.0,0.00018099,2]
[373090343,1752858651971,-460.0,0.00018099,2]
[373090345,1752858651981,-460.0,0.00018099,2]
[373090347,1752858651990,-460.0,0.00018099,2]
[373090349,1752858652001,-214.77024301,0.00018099,2]
[373090351,1752858652011,-460.0,0.00018099,2]
[373090353,1752858652021,-460.0,0.00018099,2]
[373090355,1752858652030,-460.0,0.00018099,2]
[373090357,1752858652039,-460.0,0.00018099,2]
[373090359,1752858652049,-460.0,0.00018099,2]
[373090361,1752858652059,-460.0,0.00018099,2]
[373090363,1752858652069,-460.0,0.00018099,2]
[373090365,1752858652077,-460.0,0.00018099,2]
[373090367,1752858652087,-604.8,0.00018099,2]
[373090369,1752858652105,-1112.11,0.00018099,2]
[373090371,1752858652114,-460.0,0.000181,2]
[373090373,1752858652124,-460.0,0.000181,2]
[373090375,1752858652133,-460.0,0.000181,2]
[373090377,1752858652148,-460.0,0.000181,2]
[373090379,1752858652166,-515.13459277,0.000181,2]
[373090381,1752858652176,-460.0,0.000181,2]
[373090383,1752858652185,-634.72,0.000181,2]
[373090385,1752858652195,-460.0,0.000181,2]
[373090386,1752858652204,-460.0,0.000181,2]
[373090387,1752858652213,-399.04486895,0.000181,2]
[373090388,1752858652222,-460.0,0.000181,2]
[373090389,1752858652231,-605.39,0.000181,2]
[373090390,1752858652240,-460.0,0.000181,2]
[373090391,1752858652251,-1644.5,0.000181,2]
[373090392,1752858652260,-460.0,0.000181,2]
[373090393,1752858652269,-852.85,0.000181,2]
[373090394,1752858652278,-460.0,0.000181,2]
[373090395,1752858652287,-460.0,0.000181,2]
[373090396,1752858652295,-460.0,0.000181,2]
[373090397,1752858652305,-460.0,0.000181,2]
[373090399,1752858652314,-2496.21,0.000181,2]
[373090400,1752858652323,-460.0,0.000181,2]
[373090402,1752858652333,-460.0,0.000181,2]
[373090404,1752858652342,-460.0,0.000181,2]
[373090406,1752858652351,-460.0,0.000181,2]
[373090408,1752858652361,-365.6772773,0.000181,2]
[373090410,1752858652370,-2073.39,0.000181,2]
[373090412,1752858652380,-460.0,0.000181,2]
[373090414,1752858652389,-5605.67,0.000181,2]
[373090416,1752858652398,-460.0,0.000181,2]
[373090418,1752858652410,-460.0,0.000181,2]
[373090420,1752858652419,-460.0,0.00018101,2]
[373090422,1752858652428,-1731.1,0.00018101,2]
[373090424,1752858652438,-460.0,0.00018101,2]
[373090426,1752858652446,-460.0,0.00018101,2]
[373090427,1752858652457,-460.0,0.00018101,2]
[373090429,1752858652466,-460.0,0.00018101,2]
[373090431,1752858652475,-460.0,0.00018101,2]
[373090433,1752858652486,-285.02,0.00018101,2]
[373090435,1752858652498,-460.0,0.00018101,2]
[373090438,1752858652507,-484.83,0.00018101,2]
[373090439,1752858652516,-477.42,0.00018101,2]
[373090442,1752858652526,-460.0,0.00018101,2]
[373090443,1752858652535,-681.11,0.00018101,2]
[373090445,1752858652545,-460.0,0.00018101,2]
[373090447,1752858652554,-2400.36,0.00018101,2]
[373090449,1752858652563,-460.0,0.00018101,2]
[373090451,1752858652573,-460.0,0.00018102,2]
[373090453,1752858652582,-460.0,0.00018102,2]
[373090455,1752858652592,-460.0,0.00018102,2]
[373090457,1752858652601,-460.0,0.00018102,2]
[373090459,1752858652611,-4644.07,0.00018102,2]
[373090461,1752858652620,-1229.7,0.00018102,2]
[373090463,1752858652630,-736.0,0.00018104,2]
[373090465,1752858652639,-500.0,0.00018104,2]
[373090467,1752858652649,-1122.5,0.00018104,2]
[373090469,1752858652658,-1890.89,0.00018104,2]
[373090471,1752858652667,-1359.29,0.00018104,2]
[373090473,1752858652677,-4623.0,0.00018104,2]
[373090475,1752858652686,-1513.01,0.00018104,2]
[373090477,1752858652695,-151.0,0.00018106,2]
[373090479,1752858652705,-522.98,0.00018106,2]
[373090481,1752858652715,-151.0,0.00018106,2]
[373090483,1752858652724,-525.98,0.00018106,2]
[373090485,1752858652734,-1021.92,0.00018106,2]
[373090487,1752858652743,-1795.64377921,0.00018124,2]
[373090489,1752858652755,-197.0,0.00018137,3]
[373090491,1752858652765,-150.0,0.00018143,2]
[373090493,1752858652775,-504.38663439,0.00018168,2]
[373090495,1752858652784,-1500.0,0.00018168,2]
[373090498,1752858652794,-1500.0,0.00018168,2]
[373090499,1752858652803,-1062.26293071,0.00018168,2]
[373090501,1752858652813,-151.0,0.000182,2]
[373090504,1752858652823,-2849.60510466,0.00018279,2]
[373090505,1752858652832,-460.0,0.00018372,2]
[373090507,1752858652842,-460.0,0.00018372,2]
[373090509,1752858652851,-460.0,0.00018372,2]
[373090511,1752858652861,-460.0,0.00018372,2]
[373090513,1752858652870,-460.0,0.00018372,2]
[373090515,1752858652880,-460.0,0.00018372,2]
[373090517,1752858652889,-1937.58,0.00018372,2]
[373090519,1752858652899,-460.0,0.00018373,2]
[373090521,1752858652908,-460.0,0.00018373,2]
[373090523,1752858652917,-460.0,0.00018373,2]
[373090525,1752858652926,-460.0,0.00018373,2]
[373090527,1752858652935,-460.0,0.00018373,2]
[373090529,1752858652979,-460.0,0.00018373,2]
[373090531,1752858652989,-460.0,0.00018373,2]
[373090541,1752858653074,-460.0,0.00018373,2]
[373090543,1752858653083,-460.0,0.00018373,2]
[373090545,1752858653093,-460.0,0.00018373,2]
[373090547,1752858653102,-460.0,0.00018373,2]
[373090549,1752858653111,-460.0,0.00018373,2]
[373090550,1752858653120,-711.11,0.00018373,2]
[373090552,1752858653129,-460.0,0.00018373,2]
[373090554,1752858653139,-460.0,0.00018373,2]
[373090556,1752858653148,-460.0,0.00018373,2]
[373090558,1752858653157,-460.0,0.00018373,2]
[373090560,1752858653166,-460.0,0.00018373,2]
[373090562,1752858653176,-460.0,0.00018373,2]
[373090564,1752858653186,-460.0,0.00018373,2]
[373090566,1752858653195,-460.0,0.00018373,2]
[373090568,1752858653205,-431.08485346,0.00018373,2]
[373090570,1752858653214,-925.97,0.00018373,2]
[373090572,1752858653223,-460.0,0.00018373,2]
[373090574,1752858653232,-460.0,0.00018373,2]
[373090576,1752858653241,-460.0,0.00018373,2]
[373090578,1752858653253,-460.0,0.00018373,2]
[373090580,1752858653263,-460.0,0.00018373,2]
[373090583,1752858653273,-460.0,0.00018373,2]
[373090585,1752858653282,-460.0,0.00018373,2]
[373090587,1752858653292,-460.0,0.00018373,2]
[373090589,1752858653302,-461.01845818,0.00018373,2]
[373090591,1752858653312,-460.0,0.00018373,2]
[373090593,1752858653321,-460.0,0.00018373,2]
[373090595,1752858653331,-460.0,0.00018373,2]
[373090597,1752858653340,-460.0,0.00018373,2]
[373090599,1752858653350,-604.8,0.00018373,2]
[373090601,1752858653359,-1112.11,0.00018373,2]
[373090603,1752858653369,-460.0,0.00018374,2]
[373090605,1752858653378,-483.88,0.00018374,2]
[373090607,1752858653387,-460.0,0.00018374,2]
[373090609,1752858653396,-460.0,0.00018374,2]
[373090611,1752858653407,-460.0,0.00018374,2]
[373090613,1752858653421,-634.72,0.00018374,2]
[373090615,1752858653430,-460.0,0.00018374,2]
[373090617,1752858653440,-460.0,0.00018374,2]
[373090619,1752858653450,-460.0,0.00018374,2]
[373090621,1752858653460,-605.39,0.00018374,2]
[373090623,1752858653469,-1644.5,0.00018374,2]
[373090625,1752858653479,-460.0,0.00018374,2]
[373090627,1752858653492,-852.85,0.00018374,2]
[373090629,1752858653506,-460.0,0.00018374,2]
[373090631,1752858653515,-460.0,0.00018374,2]
[373090633,1752858653524,-460.0,0.00018374,2]
[373090635,1752858653533,-2496.21,0.00018374,2]
[373090637,1752858653543,-460.0,0.00018374,2]
[373090639,1752858653552,-460.0,0.00018374,2]
[373090641,1752858653565,-460.0,0.00018374,2]
[373090643,1752858653581,-460.0,0.00018374,2]
[373090645,1752858653592,-2073.39,0.00018374,2]
[373090647,1752858653601,-460.0,0.00018374,2]
[373090649,1752858653611,-5605.67,0.00018374,2]
[373090651,1752858653620,-460.0,0.00018374,2]
[373090653,1752858653630,-460.0,0.00018374,2]
[373090655,1752858653639,-460.0,0.00018375,2]
[373090657,1752858653648,-1731.1,0.00018375,2]
[373090659,1752858653658,-460.0,0.00018375,2]
[373090661,1752858653667,-460.0,0.00018375,2]
[373090663,1752858653677,-460.0,0.00018375,2]
[373090665,1752858653686,-460.0,0.00018375,2]
[373090667,1752858653696,-460.0,0.00018375,2]
[373090669,1752858653705,-151.0,0.00018375,2]
[373090671,1752858653714,-484.83,0.00018375,2]
[373090673,1752858653724,-460.0,0.00018375,2]
[373090675,1752858653733,-477.42,0.00018375,2]
[373090677,1752858653742,-460.0,0.00018375,2]
[373090679,1752858653755,-681.11,0.00018375,2]
[373090681,1752858653765,-460.0,0.00018375,2]
[373090683,1752858653774,-151.0,0.00018375,2]
[373090685,1752858653783,-291.369193,0.00018375,2]
[373090687,1752858653793,-291.369193,0.00018375,2]
[373090689,1752858653802,-2400.36,0.00018375,2]
[373090691,1752858653812,-460.0,0.00018375,2]
[373090693,1752858653821,-460.0,0.00018376,2]
[373090695,1752858653830,-460.0,0.00018376,2]
[373090697,1752858653840,-460.0,0.00018376,2]
[373090699,1752858653849,-4644.07,0.00018376,2]
[373090701,1752858653858,-1229.7,0.00018376,2]
[373090703,1752858653867,-736.0,0.00018378,2]
[373090705,1752858653877,-500.0,0.00018378,2]
[373090707,1752858653887,-1122.5,0.00018378,2]
[373090709,1752858653896,-1890.89,0.00018378,2]
[373090711,1752858653905,-1359.29,0.00018378,2]
[373090713,1752858653914,-4623.0,0.00018378,2]
[373090715,1752858653923,-151.0,0.00018378,2]
[373090717,1752858653932,-250.89168,0.00018378,2]
[373090719,1752858653942,-250.89168,0.00018378,2]
[373090721,1752858653950,-1513.01,0.00018378,2]
[373090723,1752858653960,-522.98,0.0001838,2]
[373090724,1752858653969,-525.98,0.0001838,2]
[373090726,1752858653979,-1021.92,0.0001838,2]
[373090728,1752858653988,-500.0,0.00018459,2]
[373090730,1752858654000,-500.0,0.00018459,2]
[373090733,1752858654010,-500.0,0.00018459,2]
[373090734,1752858654019,-1795.64377921,0.00018549,2]
[373090736,1752858654028,-2849.60510466,0.00018555,2]
[373090739,1752858654038,-500.0,0.00018558,2]
[373090741,1752858654048,-500.0,0.00018558,2]
[373090743,1752858654057,-500.0,0.00018558,2]
[373090745,1752858654067,-500.0,0.00018558,2]
[373090746,1752858654076,-500.0,0.00018558,2]
[373090748,1752858654086,-500.92691785,0.00018558,2]
[373090751,1752858654097,-500.0,0.00018558,2]
[373090753,1752858654106,-500.0,0.00018558,2]
[373090755,1752858654115,-500.72588151,0.00018558,2]
[373090757,1752858654125,-555.19917992,0.00018558,2]
[373090759,1752858654134,-500.0,0.00018558,2]
[373090761,1752858654143,-500.0,0.00018558,2]
[373090763,1752858654152,-500.0,0.00018558,2]
[373090764,1752858654162,-500.0,0.00018558,2]
[373090766,1752858654171,-629.84899964,0.00018558,2]
[373090768,1752858654181,-500.0,0.00018558,2]
[373090770,1752858654190,-500.0,0.00018558,2]
[373090772,1752858654200,-500.0,0.00018558,2]
[373090774,1752858654209,-500.0,0.00018558,2]
[373090776,1752858654218,-500.0,0.00018558,2]
[373090778,1752858654227,-436.89050823,0.00018558,2]
[373090780,1752858654237,-500.0,0.00018558,2]
[373090782,1752858654246,-500.0,0.00018568,2]
[373090784,1752858654257,-500.0,0.00018568,2]
[373090787,1752858654266,-215.0738,0.00018593,2]
[373090789,1752858654275,-2000.0,0.00018616,2]
[373090791,1752858654285,-171.76175219,0.00018616,2]
[373090793,1752858654295,-460.0,0.00018646,2]
[373090795,1752858654304,-460.0,0.00018646,2]
[373090797,1752858654313,-460.0,0.00018646,2]
[373090798,1752858654322,-460.0,0.00018646,2]
[373090800,1752858654331,-460.0,0.00018646,2]
[373090802,1752858654342,-460.0,0.00018646,2]
[373090804,1752858654351,-1937.58,0.00018646,2]
[373090806,1752858654360,-541.21044024,0.00018647,2]
[373090808,1752858654370,-460.0,0.00018647,2]
[373090810,1752858654379,-460.0,0.00018647,2]
[373090812,1752858654389,-460.0,0.00018647,2]
[373090814,1752858654399,-460.0,0.00018647,2]
[373090817,1752858654413,-460.0,0.00018647,2]
[373090819,1752858654422,-460.0,0.00018647,2]
[373090820,1752858654431,-460.0,0.00018647,2]
[373090822,1752858654441,-295.15788254,0.00018647,2]
[373090825,1752858654452,-460.0,0.00018647,2]
[373090827,1752858654534,-460.0,0.00018647,2]
[373090828,1752858654545,-711.11,0.00018647,2]
[373090829,1752858654555,-460.0,0.00018647,2]
[373090830,1752858654565,-460.0,0.00018647,2]
[373090831,1752858654575,-543.97128678,0.00018647,2]
[373090832,1752858654585,-460.0,0.00018647,2]
[373090833,1752858654594,-460.0,0.00018647,2]
[373090834,1752858654604,-460.0,0.00018647,2]
[373090835,1752858654613,-460.0,0.00018647,2]
[373090836,1752858654622,-925.97,0.00018647,2]
[373090837,1752858654632,-460.0,0.00018647,2]
[373090838,1752858654642,-460.0,0.00018647,2]
[373090839,1752858654651,-460.0,0.00018647,2]
[373090840,1752858654661,-460.0,0.00018647,2]
[373090841,1752858654671,-460.0,0.00018647,2]
[373090842,1752858654681,-460.0,0.00018647,2]
[373090843,1752858654690,-460.0,0.00018647,2]
[373090844,1752858654700,-460.0,0.00018647,2]
[373090845,1752858654710,-460.0,0.00018647,2]
[373090846,1752858654720,-460.0,0.00018647,2]
[373090847,1752858654730,-460.0,0.00018647,2]
[373090848,1752858654739,-460.0,0.00018647,2]
[373090849,1752858654750,-604.8,0.00018647,2]
[373090850,1752858654759,-1112.11,0.00018647,2]
[373090852,1752858654769,-460.0,0.00018648,2]
[373090853,1752858654779,-460.0,0.00018648,2]
[373090855,1752858654789,-460.0,0.00018648,2]
[373090857,1752858654799,-596.06513191,0.00018648,2]
[373090859,1752858654811,-634.72,0.00018648,2]
[373090861,1752858654820,-277.16928204,0.00018648,2]
[373090863,1752858654830,-460.0,0.00018648,2]
[373090865,1752858654839,-460.0,0.00018648,2]
[373090867,1752858654848,-605.39,0.00018648,2]
[373090869,1752858654857,-1644.5,0.00018648,2]
[373090871,1752858654866,-460.0,0.00018648,2]
[373090873,1752858654876,-852.85,0.00018648,2]
[373090875,1752858654885,-460.0,0.00018648,2]
[373090877,1752858654895,-460.0,0.00018648,2]
[373090879,1752858654904,-460.0,0.00018648,2]
[373090881,1752858654913,-2496.21,0.00018648,2]
[373090883,1752858654923,-460.0,0.00018648,2]
[373090885,1752858654932,-460.0,0.00018648,2]
[373090886,1752858654941,-460.0,0.00018648,2]
[373090888,1752858654950,-2073.39,0.00018648,2]
[373090890,1752858654959,-286.76578097,0.00018648,2]
[373090892,1752858654969,-5605.67,0.00018648,2]
[373090894,1752858654978,-460.0,0.00018648,2]
[373090896,1752858654987,-460.0,0.00018648,2]
[373090898,1752858654996,-460.0,0.00018649,2]
[373090900,1752858655007,-1731.1,0.00018649,2]
[373090902,1752858655016,-460.0,0.00018649,2]
[373090904,1752858655026,-470.00240161,0.00018649,2]
[373090906,1752858655035,-460.0,0.00018649,2]
[373090909,1752858655045,-460.0,0.00018649,2]
[373090910,1752858655054,-484.83,0.00018649,2]
[373090912,1752858655064,-460.0,0.00018649,2]
[373090914,1752858655073,-477.42,0.00018649,2]
[373090916,1752858655083,-460.0,0.00018649,2]
[373090918,1752858655092,-681.11,0.00018649,2]
[373090920,1752858655102,-460.0,0.00018649,2]
[373090922,1752858655112,-2400.36,0.00018649,2]
[373090925,1752858655121,-460.0,0.00018649,2]
[373090926,1752858655131,-460.0,0.0001865,2]
[373090928,1752858655140,-460.0,0.0001865,2]
[373090930,1752858655149,-4644.07,0.0001865,2]
[373090932,1752858655158,-1229.7,0.0001865,2]
[373090934,1752858655168,-736.0,0.00018652,2]
[373090936,1752858655177,-500.0,0.00018652,2]
[373090938,1752858655186,-1122.5,0.00018652,2]
[373090940,1752858655195,-1890.89,0.00018652,2]
[373090942,1752858655205,-1359.29,0.00018652,2]
[373090944,1752858655214,-4623.0,0.00018652,2]
[373090946,1752858655223,-1513.01,0.00018652,2]
[373090948,1752858655233,-522.98,0.00018654,2]
[373090950,1752858655242,-525.98,0.00018654,2]
[373090952,1752858655254,-1021.92,0.00018654,2]
[373090954,1752858655264,-203.896824,0.00018663,2]
[373090957,1752858655274,-151.0,0.00018663,2]
[373090959,1752858655283,-151.0,0.00018663,2]
[373090961,1752858655293,-151.0,0.00018663,2]
[373090963,1752858655302,-161.209851,0.00018663,2]
[373090965,1752858655312,-192.530784,0.00018663,2]
[373090967,1752858655322,-192.530784,0.00018663,2]
[373090969,1752858655331,-191.666002,0.00018663,2]
[373090970,1752858655340,-191.666002,0.00018663,2]
[373090972,1752858655350,-151.0,0.00018663,2]
[373090975,1752858655359,-2000.0,0.00018716,2]
[373090977,1752858655369,-500.0,0.00018781,2]
[373090979,1752858655379,-2849.60510466,0.00018831,2]
[373090981,1752858655388,-302.78807257,0.000189,2]
[373090983,1752858655398,-3420.27962845,0.000189,2]
[373090985,1752858655408,-302.78807257,0.000189,2]
[373090987,1752858655420,-460.0,0.0001892,2]
[373090989,1752858655429,-460.0,0.0001892,2]
[373090990,1752858655439,-460.0,0.0001892,2]
[373090992,1752858655449,-460.0,0.0001892,2]
[373090994,1752858655459,-460.0,0.0001892,2]
[373090996,1752858655469,-460.0,0.0001892,2]
[373090998,1752858655479,-1937.58,0.0001892,2]
[373091000,1752858655490,-356.04006495,0.00018921,2]
[373091002,1752858655501,-460.0,0.00018921,2]
[373091005,1752858655513,-460.0,0.00018921,2]
[373091007,1752858655522,-460.0,0.00018921,2]
[373091009,1752858655531,-460.0,0.00018921,2]
[373091011,1752858655540,-460.0,0.00018921,2]
[373091013,1752858655549,-460.0,0.00018921,2]
[373091015,1752858655558,-460.0,0.00018921,2]
[373091016,1752858655568,-711.11,0.00018921,2]
[373091018,1752858655577,-460.0,0.00018921,2]
[373091021,1752858655587,-460.0,0.00018921,2]
[373091023,1752858655597,-460.0,0.00018921,2]
[373091024,1752858655607,-460.0,0.00018921,2]
[373091026,1752858655616,-460.0,0.00018921,2]
[373091028,1752858655627,-460.0,0.00018921,2]
[373091030,1752858655637,-925.97,0.00018921,2]
[373091033,1752858655647,-460.0,0.00018921,2]
[373091034,1752858655656,-460.0,0.00018921,2]
[373091037,1752858655666,-460.0,0.00018921,2]
[373091039,1752858655675,-460.0,0.00018921,2]
[373091041,1752858655685,-460.0,0.00018921,2]
[373091042,1752858655694,-460.0,0.00018921,2]
[373091044,1752858655703,-460.0,0.00018921,2]
[373091047,1752858655714,-460.0,0.00018921,2]
[373091049,1752858655723,-460.0,0.00018921,2]
[373091050,1752858655733,-460.0,0.00018921,2]
[373091052,1752858655742,-604.8,0.00018921,2]
[373091054,1752858655754,-1112.11,0.00018921,2]
[373091057,1752858655764,-460.0,0.00018922,2]
[373091058,1752858655773,-460.0,0.00018922,2]
[373091060,1752858655783,-460.0,0.00018922,2]
[373091063,1752858655792,-634.72,0.00018922,2]
[373091065,1752858655802,-460.0,0.00018922,2]
[373091074,1752858655879,-460.0,0.00018922,2]
[373091076,1752858655890,-605.39,0.00018922,2]
[373091078,1752858655899,-1644.5,0.00018922,2]
[373091080,1752858655908,-460.0,0.00018922,2]
[373091082,1752858655918,-852.85,0.00018922,2]
[373091084,1752858655927,-460.0,0.00018922,2]
[373091086,1752858655936,-460.0,0.00018922,2]
[373091088,1752858655946,-460.0,0.00018922,2]
[373091090,1752858655955,-2496.21,0.00018922,2]
[373091092,1752858655965,-460.0,0.00018922,2]
[373091094,1752858655974,-460.0,0.00018922,2]
[373091095,1752858655983,-460.0,0.00018922,2]
[373091097,1752858655993,-2073.39,0.00018922,2]
[373091100,1752858656006,-5605.67,0.00018922,2]
[373091102,1752858656015,-460.0,0.00018922,2]
[373091104,1752858656025,-460.0,0.00018922,2]
[373091106,1752858656034,-170.21,0.00018923,2]
[373091108,1752858656044,-519.49257554,0.00018923,2]
[373091110,1752858656053,-1731.1,0.00018923,2]
[373091111,1752858656062,-460.0,0.00018923,2]
[373091114,1752858656072,-151.0,0.00018923,2]
[373091116,1752858656081,-460.0,0.00018923,2]
[373091118,1752858656091,-460.0,0.00018923,2]
[373091120,1752858656101,-484.83,0.00018923,2]
[373091121,1752858656110,-460.0,0.00018923,2]
[373091123,1752858656120,-477.42,0.00018923,2]
[373091125,1752858656130,-460.0,0.00018923,2]
[373091127,1752858656139,-681.11,0.00018923,2]
[373091129,1752858656149,-460.0,0.00018923,2]
[373091131,1752858656158,-2400.36,0.00018923,2]
[373091133,1752858656168,-158.17342747,0.00018923,2]
[373091135,1752858656177,-460.0,0.00018924,2]
[373091137,1752858656186,-151.0,0.00018924,2]
[373091139,1752858656196,-460.0,0.00018924,2]
[373091141,1752858656205,-151.0,0.00018924,2]
[373091143,1752858656215,-4644.07,0.00018924,2]
[373091145,1752858656224,-1229.7,0.00018924,2]
[373091147,1752858656234,-151.0,0.00018924,2]
[373091149,1752858656243,-291.369193,0.00018924,2]
[373091151,1752858656255,-291.369193,0.00018924,2]
[373091153,1752858656265,-736.0,0.00018926,2]
[373091155,1752858656274,-500.0,0.00018926,2]
[373091157,1752858656284,-1122.5,0.00018926,2]
[373091159,1752858656294,-1890.89,0.00018926,2]
[373091161,1752858656305,-1359.29,0.00018926,2]
[373091163,1752858656314,-4623.0,0.00018926,2]
[373091165,1752858656324,-151.0,0.00018926,2]
[373091167,1752858656334,-250.89168,0.00018926,2]
[373091169,1752858656344,-250.89168,0.00018926,2]
[373091171,1752858656353,-1513.01,0.00018926,2]
[373091173,1752858656363,-522.98,0.00018928,2]
[373091176,1752858656373,-525.98,0.00018928,2]
[373091178,1752858656383,-1021.92,0.00018928,2]
[373091180,1752858656393,-770.414,0.00018932,2]
[373091182,1752858656402,-1000.0,0.00019007,2]
[373091184,1752858656413,-1000.0,0.00019007,2]
[373091186,1752858656424,-1535.10716809,0.00019069,2]
[373091188,1752858656434,-302.78807257,0.00019089,2]
[373091190,1752858656443,-302.78807257,0.00019089,2]
[373091192,1752858656452,-160.0,0.000191,2]
[373091194,1752858656463,-558.29399971,0.00019106,2]
[373091196,1752858656473,-1000.0,0.00019106,2]
[373091198,1752858656483,-502.68708382,0.00019106,2]
[373091199,1752858656494,-1000.0,0.00019106,2]
[373091201,1752858656504,-500.0,0.00019106,2]
[373091203,1752858656513,-500.0,0.00019106,2]
[373091205,1752858656522,-2849.60510466,0.00019107,2]
[373091207,1752858656532,-2500.0,0.00019164,2]
[373091209,1752858656541,-151.56777351,0.00019178,2]
[373091211,1752858656550,-293.44706,0.00019178,2]
[373091213,1752858656559,-666.0,0.00019178,2]
[373091215,1752858656569,-264.29475295,0.00019194,2]
[373091217,1752858656578,-460.0,0.00019194,2]
[373091219,1752858656587,-460.0,0.00019194,2]
[373091221,1752858656597,-460.0,0.00019194,2]
[373091223,1752858656608,-460.0,0.00019194,2]
[373091225,1752858656617,-1937.58,0.00019194,2]
[373091227,1752858656627,-460.0,0.00019195,2]
[373091229,1752858656638,-460.0,0.00019195,2]
[373091231,1752858656647,-460.0,0.00019195,2]
[373091233,1752858656656,-460.0,0.00019195,2]
[373091235,1752858656666,-460.0,0.00019195,2]
[373091237,1752858656675,-460.0,0.00019195,2]
[373091239,1752858656685,-711.11,0.00019195,2]
[373091241,1752858656695,-460.0,0.00019195,2]
[373091244,1752858656707,-292.11911566,0.00019195,2]
[373091246,1752858656717,-460.0,0.00019195,2]
[373091247,1752858656728,-460.0,0.00019195,2]
[373091249,1752858656738,-460.0,0.00019195,2]
[373091251,1752858656747,-460.0,0.00019195,2]
[373091254,1752858656759,-925.97,0.00019195,2]
[373091256,1752858656768,-460.0,0.00019195,2]
[373091258,1752858656777,-460.0,0.00019195,2]
[373091260,1752858656787,-460.0,0.00019195,2]
[373091262,1752858656796,-460.0,0.00019195,2]
[373091264,1752858656806,-460.0,0.00019195,2]
[373091266,1752858656815,-460.0,0.00019195,2]
[373091268,1752858656825,-460.0,0.00019195,2]